{"text_format":"2","workbook":"xlsx","n_sheets":4,"sheets":["Info","Főösszesítő","Munkanem összesítő","71.Elektromos energiaellátás,"],"not_rendered":{"charts":0,"images":0,"macros":0,"external_links":0,"defined_names":0,"comments":0,"pivot_tables":0},"unopened":[],"bounds":{"document_bytes":16777216,"sheet_cells":100000,"run_cost":"one","rows_first":2000,"rows_last":500,"rows_between":2000,"halvings":0,"cell_chars":16384,"cell_head_chars":4096},"cells_cut":0,"cells_raw":0,"read":"whole","date_system":"1900"}

{"sheet":"Info","index":0,"n_rows":28,"n_cols":2,"rows_kept":28,"cut":false,"hidden":false,"merged":[[0,0,0,1],[17,0,17,1],[20,0,20,1],[25,0,25,1]]}
["Exportált költségvetés adatai"]
["Költségvetés neve:","Irinyi épület 43-45 iroda átalakítás"]
["Leírás:","SZTE Irinyi épület I.em 43-45.sz.irodák egybenyitásával létrejövő számítástechnikai kabinet komplett elektromos erős- és gyengeáramú hálózatkialakítása."]
["Költségvetés jellege:","Felújítás"]
["Tételek száma:","17 db"]
["Munkanemek száma:","1 db"]
["Fejezetek száma:","Nem fejezetes"]
["Építmény tulajdonsága:","Oktatási célú épület"]
[]
["Utolsó módosítás:","2025-03-25 09:07:03"]
[]
["Rezsióradíj:",0]
["Bruttó végösszeg:",0]
[]
["Készítette:","szte_meszarosjanosgmfuszegedhu@tercetalon.hu"]
[]
["Figyelem!"]
["Ez az információs ablak az exportálással létrejött költségvetés alapadatait tartalmazza!"]
[]
[]
["A további munkafüzet-lapokon történő változtatások nincsenek hatással az oldal adataira!\nTovábbá az ezen az oldalon kiadott módosítások nem változtatják a költségvetés adatait!"]
[]
[]
[]
[]
["Készült a TERC-ETALON Online Építőipari Költségvetés-készítő és Kiíró Programrendszerrel"]
[]
["http://www.etalon.terc.hu"]

{"sheet":"Főösszesítő","index":1,"n_rows":8,"n_cols":4,"rows_kept":8,"cut":false,"hidden":false,"merged":[[0,0,0,3],[2,0,2,3],[5,2,5,3],[6,2,6,3],[7,2,7,3]]}
[]
[]
["Költségvetés főösszesítő"]
["Megnevezés",null,"Anyagköltség","Díjköltség"]
["1 Építmény közvetlen költségei",null,{"$f":"'Munkanem összesítő'!C3","v":0},{"$f":"'Munkanem összesítő'!D3","v":0}]
["2.1 ÁFA vetítési alap",null,{"$f":"ROUND(C5+D5,0)","v":0}]
["2.2 ÁFA",0.27,{"$f":"ROUND(C6*B7,0)","v":0}]
["3 A munka ára (HUF)",null,{"$f":"ROUND(C7+C6,0)","v":0}]

{"sheet":"Munkanem összesítő","index":2,"n_rows":3,"n_cols":4,"rows_kept":3,"cut":false,"hidden":false,"merged":[]}
["Ssz.","Megnevezés","Anyagköltség","Díjköltség"]
["71","Elektromos energiaellátás, villanyszerelés",{"$f":"'71.Elektromos energiaellátás,'!H20","v":0},{"$f":"'71.Elektromos energiaellátás,'!I20","v":0}]
[null,"Összesen (HUF)",{"$f":"ROUND(SUM(C2:C2),0)","v":0},{"$f":"ROUND(SUM(D2:D2),0)","v":0}]

{"sheet":"71.Elektromos energiaellátás,","index":3,"n_rows":20,"n_cols":10,"rows_kept":20,"cut":false,"hidden":false,"merged":[]}
["Ssz.","Tételszám","Tétel szövege","Menny.","Egység","Anyag egységár","Díj egységre","Anyag összesen","Díj összesen","Megjegyzés"]
[1,"71-000-1.10","Vezetékek, kábelek és szerelvények bontása; áramköri elosztók, fogyasztásmérő szekrények",1,"db",null,null,{"$f":"ROUND(F2*D2,0)","v":0},{"$f":"ROUND(G2*D2,0)","v":0}]
[2,"71-000-1.11","Vezetékek, kábelek és szerelvények bontása; kapcsolók, csatlakozó aljzatok, falifoglalatok, csengők, reduktorok, erős- vagy gyengeáramú nyomók, termosztátok, lépcsőházi automaták, jelzők leszerelése",25,"db",null,null,0,0]
[3,"71-000-1.13","Vezetékek, kábelek és szerelvények bontása; mindennemű fényforrás és lámpatest leszerelése",12,"db",null,null,0,0]
[4,"71-000-1.14","Vezetékek, kábelek és szerelvények bontása; biztosító, elosztótáblák (tokozott is), jelzőberendezések leszerelése",1,"db",null,null,0,0]
[5,"71-000-1.7.2.2.1","Vezetékek, kábelek és szerelvények bontása; kábel leszerelése, tartószerkezetről, rögzítés bontásával, tömeghatár: 1,00 kg/m-ig",50,"m",null,null,0,0]
[6,"71-001-24.2.4-0533831","Műanyag vezetékcsatorna, padlószegélycsatorna elhelyezése előre elkészített tartószerkezetre szerelve, idomdarabokkal, szélesség:  100 mm felett, szerelvényezhető csatorna 105x50 mm, 85 mm széles fedéllel, fehér",40,"m",null,null,0,0]
[7,"71-002-20.1.1-0221522","Kábelszerű vezeték elhelyezése védőcsőbe húzva vagy vezetékcsatornába fektetve, 2-5 erű rézvezetővel, leágazó kötésekkel, szigetelés ellenállás méréssel, a szerelvényekhez csatlakozó vezetékvégek bekötése nélkül, 2-3 erű, gyors vezetékösszekötővel, keresztmetszet: 2,5 mm2-ig, NYM 300/500V 3x2,5 mm², tömör rézvezetővel (MBCu)",240,"m",null,null,0,0]
[8,"71-002-20.1.1-0221501","Kábelszerű vezeték elhelyezése védőcsőbe húzva vagy vezetékcsatornába fektetve, 2-5 erű rézvezetővel, leágazó kötésekkel, szigetelés ellenállás méréssel, a szerelvényekhez csatlakozó vezetékvégek bekötése nélkül, 2-3 erű, gyors vezetékösszekötővel, keresztmetszet: 2,5 mm2-ig, NYM 300/500V 3x1,5 mm², tömör rézvezetővel (MBCu)",80,"m",null,null,0,0]
[9,"71-002-42.1.2-0111902","Adatátviteli kábel elhelyezése védőcsőbe húzva vagy vezetékcsatornába fektetve, strukturált adatátviteli kábel strukturált számítógépes adatátviteli hálózatokhoz, alufólia árnyékolással, 100 Mbit/s átviteli sebesség (CAT 5 kategória), Cabling Systems Hungary Premium-Line Cat.5e F/UTP LSOH falikábel AWG 24 305 m/dob",610,"m",null,null,0,0]
[10,"71-002-42.1.1-0111901","Adatátviteli kábel (PATCH) elkészítése egyedi méretben. 15db 2m; 15db 3m; 10db 5m; CAT6/CAT6A SFTP kábel",125,"m",null,null,0,0]
[11,"71-005-2.63.1.1-0530833","Összeépíthető világítási  és telekommunikációs szerelvények elemei; Csatlakozóaljzat (dugaszolóaljzat) elhelyezése, földelt, egyes, 2P+F csatlakozóaljzat gyermekvédelem nélkül, csavaros, 2 modul, fehér ",42,"db",null,null,0,0]
[12,"71-005-2.63.1.1-0210857","Összeépíthető világítási  és telekommunikációs szerelvények elemei; Csatlakozóaljzat (dugaszolóaljzat) elhelyezése, földelt,falon kívüli egyes, 2P+F csatlakozóaljzat (csavaros), fehér projektor számára",10,"m",null,null,0,0]
[13,"71-005-2.62-0547086","Összeépíthető világítási  és telekommunikációs szerelvények elemei; Telekommunikációs csatlakozóaljzat elhelyezése (műanyag borítóelemekkel), 2xRJ45 Cat. 6 UTP csatlakozóaljzat mechanizmus ",30,"db",null,null,0,0]
[14,"71-005-2.99","Kiegészítők elhelyezése HDMI kábel",10,"m",null,null,0,0]
[15,"K-tétel","Egyedi hosszabbító készítése 3m hosszban 6db dugaljal,kapcsolható kivitelben",4,"db",null,null,0,0]
[16,"71-009-1.4.7","Áramköri elosztók falon kívüli elhelyezéssel, kalapsínes szerelőlappal,N- és PE sínnel, max. 125A-ig, IP 30 védettséggel (kismegszakítók, védőkapcsolók, távkapcsolók stb. számára) Főkapcsolóval,FI-relével,túlfeszültség levezetővel (T1-T2) kompletten, kiselosztók 54 egység,zárható kivitelben",1,"db",null,null,0,0]
[17,"71-010-2.7-0143229","Felületre szerelt lámpatest elhelyezése előre elkészített tartószerkezetre, zárt, LED-es kivitelben, 15W  mennyezeti LED-es lámpatest, semlegesfehér (4500K), vibrálásmentes kivitel",11,"db",null,null,0,0]
[18,"71-013-9","VBF és jegyzőkönyv valamint átadási dokumentáció elkészítése (FMV és kivitelezői nyilatkozat,darabvizsgálati jgyk,fénymérési jgyk…stb) készítése",60,"db",null,null,0,0]
[null,null,"Munkanem összesen (HUF)",{"$nulls":4},{"$f":"ROUND(SUM(H2:H19),0)","v":0},{"$f":"ROUND(SUM(I2:I19),0)","v":0}]